bitfinex-derivatives/quotes_BTCF0:USTF0_20250208
["timestamp","ask_amount","ask_price","bid_price","bid_amount"]
[1739039772964,0.20835631,96476.0,96474.0,0.0202891]
[1739039773475,0.20835631,96476.0,96474.0,0.0212891]
[1739039773675,0.20735631,96476.0,96474.0,0.0152891]
[1739039773976,0.001,96475.0,96474.0,0.0202891]
[1739039774273,0.001,96475.0,96474.0,0.0192891]
[1739039775175,0.20735631,96476.0,96474.0,0.0142891]
[1739039775375,0.20835631,96476.0,96474.0,0.0192891]
[1739039776169,0.001,96475.0,96474.0,0.0192891]
[1739039776974,0.20735631,96476.0,96474.0,0.0142891]
[1739039777276,0.20835631,96476.0,96474.0,0.0192891]
[1739039778682,0.001,96475.0,96474.0,0.0192891]
[1739039779372,0.20735631,96476.0,96474.0,0.0142891]
[1739039779573,0.20835631,96476.0,96474.0,0.0172891]
[1739039779877,0.20835631,96476.0,96474.0,0.0192891]
[1739039780273,0.001,96475.0,96474.0,0.0192891]
[1739039780877,0.001,96475.0,96474.0,0.0172891]
[1739039781084,0.001,96475.0,96474.0,0.0192891]
[1739039782384,0.20835631,96476.0,96474.0,0.0192891]
[1739039783084,0.20735631,96476.0,96474.0,0.0142891]
[1739039783287,0.001,96475.0,96474.0,0.0192891]
[1739039784087,0.20835631,96476.0,96474.0,0.0192891]
[1739039785483,0.20835631,96476.0,96474.0,0.0142891]
[1739039785484,0.20735631,96476.0,96474.0,0.0142891]
[1739039785675,0.001,96475.0,96474.0,0.0192891]
[1739039785875,0.001,96475.0,96474.0,0.0172891]
[1739039786075,0.001,96475.0,96474.0,0.0192891]
[1739039786275,0.20735631,96476.0,96474.0,0.0142891]
[1739039786476,0.20835631,96476.0,96474.0,0.0172891]
[1739039786782,0.20835631,96476.0,96474.0,0.0192891]
[1739039787181,0.001,96475.0,96474.0,0.0192891]
[1739039788581,0.001,96475.0,96474.0,0.0142891]
[1739039788785,0.20835631,96476.0,96474.0,0.0192891]
[1739039789580,0.20735631,96476.0,96474.0,0.0142891]
[1739039789888,0.001,96475.0,96474.0,0.0192891]
[1739039791486,0.20835631,96476.0,96474.0,0.0192891]
[1739039792391,0.001,96475.0,96474.0,0.0192891]
[1739039793188,0.20835631,96476.0,96474.0,0.0192891]
[1739039794584,0.06006198,96475.0,96474.0,0.0192891]
[1739039794987,0.06106198,96475.0,96474.0,0.0192891]
[1739039795792,0.06106198,96475.0,96474.0,0.0172891]
[1739039795992,0.06106198,96475.0,96474.0,0.0192891]
[1739039796197,0.06106198,96475.0,96474.0,0.3800891]
[1739039796498,0.06106198,96475.0,96474.0,0.3780891]
[1739039796701,0.06106198,96475.0,96474.0,0.3800891]
[1739039798402,1e-08,96476.0,96475.0,0.2073179]
[1739039799490,1e-08,96476.0,96475.0,0.2123179]
[1739039799694,0.00100001,96476.0,96475.0,0.2143179]
[1739039800295,0.00100001,96476.0,96475.0,0.2850379]
[1739039801292,0.00015549,96481.0,96475.0,0.07772]
[1739039801498,0.21806395,96487.0,96486.0,0.2072943]
[1739039801693,0.2485868,96494.0,96486.0,0.3608]
[1739039802006,0.0314,96514.0,96486.0,0.3608]
[1739039802007,0.18647621,96499.0,96495.0,0.207274]
[1739039802206,0.18647621,96499.0,96496.0,0.0633]
[1739039802509,0.18647621,96499.0,96497.0,0.2072707]
[1739039803408,0.19247621,96499.0,96497.0,0.2072707]
[1739039804198,0.19247621,96499.0,96498.0,0.07072]
[1739039804394,0.19747621,96499.0,96498.0,0.07072]
[1739039805002,0.19647621,96499.0,96498.0,0.07072]
[1739039805310,0.009,96499.0,96498.0,0.07072]
[1739039805910,0.01,96499.0,96498.0,0.07072]
[1739039806109,0.005,96499.0,96498.0,0.07072]
[1739039806309,0.011,96499.0,96498.0,0.07072]
[1739039807907,0.3608,96522.0,96498.0,0.07072]
[1739039808215,0.3608,96522.0,96515.0,0.2072318]
[1739039808603,0.2072157,96523.0,96515.0,0.2072318]
[1739039809305,0.016,96522.0,96516.0,0.2072289]
[1739039809510,0.016,96522.0,96517.0,0.207227]
[1739039809807,0.009,96522.0,96517.0,0.207227]
[1739039810526,0.016,96522.0,96517.0,0.207227]
[1739039810714,0.2232178,96522.0,96517.0,0.207227]
[1739039811608,0.2142178,96522.0,96517.0,0.207227]
[1739039812009,0.2142178,96522.0,96520.0,0.2072211]
[1739039812309,0.2072178,96522.0,96520.0,0.2072211]
[1739039812617,0.2162178,96522.0,96520.0,0.2072211]
[1739039813317,0.2162178,96522.0,96520.0,0.2082211]
[1739039814012,0.2072178,96522.0,96520.0,0.2082211]
[1739039814318,0.2162178,96522.0,96520.0,0.2092211]
[1739039817617,0.009,96522.0,96520.0,0.2092211]
[1739039818813,0.002,96522.0,96520.0,0.2072211]
[1739039822749,0.0329,96538.0,96529.0,0.2072013]
[1739039823036,0.4273877,96536.0,96532.0,0.3608]
[1739039824323,0.2071913,96534.0,96532.0,0.3608]
[1739039824824,0.2071913,96534.0,96532.0,0.3668]
[1739039825527,0.2071913,96534.0,96532.0,0.3698]
[1739039826224,0.001,96536.0,96532.0,0.3698]
[1739039826415,0.207175,96542.0,96535.0,0.2071891]
[1739039827023,0.207175,96542.0,96532.0,0.43486011]
[1739039827222,0.207175,96542.0,96538.0,0.2071816]
[1739039827928,0.207175,96542.0,96532.0,0.44366057]
[1739039828128,0.208175,96542.0,96540.0,0.2071767]
[1739039828629,0.001,96542.0,96540.0,0.2071767]
[1739039829426,0.2071818,96539.0,96534.0,0.2071908]
[1739039829624,0.2071839,96538.0,96534.0,0.07064]
[1739039829818,0.2071839,96538.0,96535.0,0.2071876]
[1739039831131,0.0926,96541.0,96535.0,0.2071876]
[1739039831333,0.2071855,96537.0,96535.0,0.2071876]
[1739039831731,0.2071855,96537.0,96532.0,0.37260046]
[1739039831936,0.2071855,96537.0,96535.0,0.004]
[1739039832324,0.2071855,96537.0,96535.0,0.006]
[1739039833525,0.2071855,96537.0,96535.0,0.00330451]
[1739039833935,0.2071855,96537.0,96535.0,0.004]
[1739039834630,0.0926,96541.0,96535.0,0.006]
[1739039836726,0.2071708,96544.0,96535.0,0.006]
[1739039836928,0.2071708,96544.0,96537.0,0.2071839]
[1739039837730,0.2081708,96544.0,96537.0,0.2071839]
[1739039838435,0.2081708,96544.0,96537.0,0.2131839]
[1739039838632,0.2081708,96544.0,96537.0,0.2221839]
[1739039840425,0.2071725,96543.0,96537.0,0.2221839]
[1739039840740,0.001,96544.0,96537.0,0.2221839]
[1739039841038,0.2071746,96542.0,96537.0,0.2221839]
[1739039841430,0.2071746,96542.0,96537.0,0.2161839]
[1739039841636,0.2071746,96542.0,96537.0,0.2221839]
[1739039841832,0.2071746,96542.0,96537.0,0.015]
[1739039842137,0.2071746,96542.0,96539.0,0.20718]
[1739039843436,0.2081746,96542.0,96539.0,0.20718]
[1739039843837,0.2081746,96542.0,96539.0,0.21218]
[1739039844240,0.2071776,96541.0,96539.0,0.013]
[1739039846337,0.2071776,96541.0,96539.0,0.005]
[1739039846536,0.2081776,96541.0,96539.0,0.013]
[1739039849243,0.001,96541.0,96539.0,0.220179]
[1739039849429,0.001,96541.0,96540.0,0.0326]
[1739039850434,0.2071636,96547.0,96541.0,0.2071762]
[1739039850635,0.2071636,96547.0,96542.0,0.2071735]
[1739039851243,0.2071636,96547.0,96543.0,0.2071708]
[1739039852242,0.00015488,96550.0,96545.0,0.2071675]
[1739039853634,0.00015488,96550.0,96545.0,0.2161675]
[1739039853943,0.00015488,96550.0,96549.0,0.3608]
[1739039854945,0.00015488,96550.0,96549.0,0.28965294]
[1739039855834,0.00115488,96550.0,96549.0,0.29865294]
[1739039856442,0.21723052,96555.0,96550.0,0.2071569]
[1739039856637,0.21723052,96555.0,96554.0,0.2071483]
[1739039858348,0.21723052,96555.0,96554.0,0.2161483]
[1739039859540,0.21723052,96555.0,96554.0,0.2251483]
[1739039859744,0.2071379,96559.0,96554.0,0.2251483]
[1739039860341,0.2071379,96559.0,96555.0,0.2071449]
[1739039860550,0.2071379,96559.0,96556.0,0.2071435]
[1739039861849,4e-05,96561.0,96556.0,0.2071435]
[1739039862147,0.2071401,96558.0,96556.0,0.2071435]
[1739039863052,0.2071401,96558.0,96556.0,0.2251435]
[1739039863349,0.2071401,96558.0,96556.0,0.2161435]
[1739039863751,0.2071401,96558.0,96556.0,0.2251435]
[1739039863945,0.2071401,96558.0,96557.0,0.3608]
[1739039865548,0.2071401,96558.0,96557.0,0.3698]
[1739039866050,0.2071401,96558.0,96557.0,0.3788]
[1739039866657,0.2071401,96558.0,96557.0,0.5859419]
[1739039869160,0.2071401,96558.0,96557.0,0.2251419]
[1739039870461,0.2071401,96558.0,96557.0,0.018]
[1739039876565,0.2071401,96558.0,96557.0,0.012]
[1739039878058,0.2081401,96558.0,96557.0,0.01]
[1739039903072,0.2081401,96558.0,96557.0,0.006]
[1739039903277,0.2081401,96558.0,96557.0,0.00052593]
[1739039906673,0.5689401,96558.0,96557.0,0.00052593]
[1739039911587,0.5689401,96558.0,96557.0,1e-08]
[1739039911776,0.2071569,96550.0,96549.0,0.00010585]
[1739039912086,0.2071805,96539.0,96538.0,0.0311]
[1739039912479,0.3608,96541.0,96532.0,0.767]
[1739039912679,0.3608,96533.0,96532.0,0.76616]
[1739039912878,0.5679933,96533.0,96532.0,0.76616]
[1739039913077,0.56808221,96533.0,96532.0,0.76616]
[1739039913878,0.56808221,96533.0,96532.0,0.78316]
[1739039914277,0.56808221,96533.0,96532.0,0.77516]
[1739039914581,0.56808221,96533.0,96532.0,0.02776535]
[1739039925191,0.20728221,96533.0,96532.0,0.02776535]
[1739039925391,0.20728221,96533.0,96532.0,0.09046535]
[1739039936304,0.20728221,96533.0,96532.0,0.05926535]
[1739039936505,0.20728221,96533.0,96532.0,0.02776535]
[1739039939106,0.56808221,96533.0,96532.0,0.02776535]
[1739039940393,0.56808221,96533.0,96532.0,0.0140327]
[1739039941404,0.63864221,96533.0,96532.0,0.0140327]
[1739039941804,0.67164221,96533.0,96532.0,0.0140327]
[1739039944211,0.70364221,96533.0,96532.0,0.0140327]
[1739039945413,0.76367647,96533.0,96532.0,0.0140327]
[1739039946908,0.76358756,96533.0,96532.0,0.0140327]
[1739039947109,0.2072255,96518.0,96510.0,0.09806011]
[1739039947410,0.56815326,96518.0,96517.0,0.04226897]
[1739039948313,0.56915326,96518.0,96517.0,0.05126897]
[1739039948512,0.57015326,96518.0,96517.0,0.05726897]
[1739039950410,0.20935326,96518.0,96517.0,0.05726897]
[1739039951719,0.00212776,96518.0,96517.0,0.05726897]
[1739039952805,0.00212776,96518.0,96517.0,0.41806897]
[1739039959200,0.00212776,96518.0,96517.0,0.05726897]
[1739039959617,0.1574048,96518.0,96517.0,0.05726897]
[1739039962318,0.00212776,96518.0,96517.0,0.05726897]
[1739039967921,0.00212776,96518.0,96517.0,0.02636897]
[1739039971925,0.00112776,96518.0,96517.0,0.02136897]
[1739039972226,0.00012776,96518.0,96517.0,0.01836897]
[1739039974129,0.00012776,96518.0,96517.0,0.0085602]
[1739039974330,0.00012776,96518.0,96517.0,0.007]
[1739039978929,0.36092776,96518.0,96517.0,0.007]
[1739039982044,0.36092776,96518.0,96517.0,0.00311545]
[1739039983435,0.56815326,96518.0,96517.0,0.00311545]
[1739039990039,0.56815326,96518.0,96517.0,0.00152808]
[1739039996644,0.62832552,96518.0,96517.0,0.00152808]
[1739039998441,0.62832552,96518.0,96517.0,0.00069836]
[1739040002960,0.56815326,96518.0,96517.0,0.00069836]
[1739040004557,0.56815086,96518.0,96517.0,0.00069836]
[1739040004747,0.2072363,96513.0,96512.0,0.00115946]
[1739040005051,0.5680363,96513.0,96512.0,0.00115946]
[1739040005841,0.2072449,96509.0,96508.0,0.00015538]
[1739040006044,0.2777649,96509.0,96508.0,0.00015538]
[1739040006453,0.27787357,96509.0,96508.0,0.00015538]
[1739040006653,0.2777649,96509.0,96508.0,0.00015538]
[1739040006961,0.2777649,96509.0,96508.0,6.396e-05]
[1739040007754,0.2777649,96509.0,96508.0,6e-08]
[1739040009659,0.34253061,96509.0,96508.0,6e-08]
[1739040010145,0.34265185,96509.0,96508.0,6e-08]
[1739040010349,0.34253061,96509.0,96508.0,6e-08]
[1739040011459,0.56273061,96509.0,96508.0,6e-08]
[1739040013644,0.56280684,96509.0,96508.0,6e-08]
[1739040013847,0.56283002,96509.0,96508.0,6e-08]
[1739040014042,0.56285832,96509.0,96508.0,6e-08]
[1739040014253,0.56273061,96509.0,96508.0,6e-08]
[1739040015158,0.4979649,96509.0,96508.0,6e-08]
[1739040018351,0.68390271,96509.0,96508.0,6e-08]
[1739040019461,0.68400873,96509.0,96508.0,6e-08]
[1739040019657,0.68399454,96509.0,96508.0,6e-08]
[1739040019964,0.68390271,96509.0,96508.0,6e-08]
[1739040021458,0.4979649,96509.0,96508.0,6e-08]
[1739040023364,0.49806401,96509.0,96508.0,6e-08]
[1739040023668,0.4979649,96509.0,96508.0,6e-08]
[1739040025160,0.29072,96509.0,96499.0,0.0312]
[1739040025360,0.5680642,96500.0,96499.0,0.0312]
[1739040025564,0.56818765,96500.0,96499.0,0.0312]
[1739040025764,0.56818765,96500.0,96499.0,0.04554002]
[1739040026462,0.56818765,96500.0,96499.0,0.05054002]
[1739040027061,0.56818765,96500.0,96499.0,0.04554002]
[1739040027267,0.56818765,96500.0,96499.0,0.05054002]
[1739040027460,0.62824054,96500.0,96499.0,0.05054002]
[1739040028069,0.62824054,96500.0,96499.0,0.05454002]
[1739040028269,0.62824054,96500.0,96499.0,0.0402]
[1739040028772,0.26744054,96500.0,96499.0,0.0402]
[1739040028966,0.62824054,96500.0,96499.0,0.0402]
[1739040030173,0.69876054,96500.0,96499.0,0.0402]
[1739040033079,0.63870765,96500.0,96499.0,0.0402]
[1739040034480,0.56818765,96500.0,96499.0,0.00757476]
[1739040034975,0.5680642,96500.0,96499.0,0.00757476]
[1739040035176,0.18617237,96508.0,96499.0,0.36837476]
[1739040035382,0.2202,96523.0,96507.0,0.3608]
[1739040035568,0.2072361,96514.0,96513.0,0.06506011]
[1739040035883,0.2072361,96514.0,96511.0,0.2072391]
[1739040037671,0.2092361,96514.0,96512.0,0.2377373]
[1739040038377,0.2082361,96514.0,96512.0,0.2377373]
[1739040038567,0.001,96514.0,96512.0,0.2377373]
[1739040039070,0.21749861,96516.0,96515.0,0.207232]
[1739040040477,0.2072202,96521.0,96519.0,0.2072224]
[1739040040672,0.00052001,96523.0,96521.0,0.2072191]
[1739040040867,0.21749861,96526.0,96525.0,0.2072105]
[1739040042071,0.21758893,96526.0,96525.0,0.2072105]
[1739040042377,0.21849861,96526.0,96525.0,0.2192105]
[1739040042769,0.21849861,96526.0,96525.0,0.23367861]
[1739040043673,0.001,96526.0,96525.0,0.23367861]
[1739040045580,0.00109207,96526.0,96525.0,0.23367861]
[1739040045782,0.001,96526.0,96525.0,0.23367861]
[1739040057691,0.00107376,96526.0,96525.0,0.23367861]
[1739040057994,0.001,96526.0,96525.0,0.23367861]
[1739040058193,8.162e-05,96527.0,96525.0,0.23367861]
[1739040058397,0.2071775,96541.0,96538.0,0.2071825]
[1739040058597,0.0826852,96558.0,96538.0,0.2071825]
[1739040058895,0.2071762,96541.0,96540.0,0.06506011]
[1739040059194,0.2071805,96539.0,96538.0,0.2071825]
[1739040061985,0.2071805,96539.0,96538.0,0.22514788]
[1739040062193,0.20727387,96539.0,96538.0,0.22514788]
[1739040062395,0.2071805,96539.0,96538.0,0.22514788]
[1739040062586,0.20730608,96539.0,96538.0,0.22514788]
[1739040062786,0.2071805,96539.0,96538.0,0.22514788]
[1739040066095,0.20729539,96539.0,96538.0,0.22514788]
[1739040066298,0.20726436,96539.0,96538.0,0.22514788]
[1739040066499,0.2071805,96539.0,96538.0,0.22514788]
[1739040067298,0.2071805,96539.0,96538.0,0.01796538]
[1739040067486,0.06521549,96550.0,96533.0,0.3608]
[1739040067685,0.06521549,96550.0,96540.0,0.06506011]
[1739040067898,0.2071859,96537.0,96533.0,0.3608]
[1739040068495,0.2071859,96537.0,96533.0,0.5679918]
[1739040068701,0.2071859,96537.0,96534.0,0.2071903]
[1739040068900,0.2071859,96537.0,96535.0,0.2071882]
[1739040069601,0.00010854,96536.0,96535.0,0.2071882]
[1739040069800,0.2071859,96537.0,96535.0,0.2071882]
[1739040070594,0.2071859,96537.0,96535.0,0.2091882]
[1739040071501,0.2071859,96537.0,96535.0,0.2101882]
[1739040072605,0.2071714,96544.0,96540.0,0.2071773]
[1739040073199,0.2071714,96544.0,96541.0,0.3608]
[1739040073998,0.2081714,96544.0,96541.0,0.3608]
[1739040074698,8.434e-05,96543.0,96541.0,0.3608]
[1739040074914,0.2081714,96544.0,96541.0,0.3608]
[1739040075201,0.002,96544.0,96542.0,0.207174]
[1739040075792,0.001,96544.0,96542.0,0.207174]
[1739040076400,0.001,96544.0,96542.0,0.208174]
[1739040077194,0.00015538,96550.0,96542.0,0.208174]
[1739040078007,0.001,96544.0,96542.0,0.214174]
[1739040078400,0.00011761,96543.0,96542.0,0.214174]
[1739040078709,0.001,96544.0,96542.0,0.217174]
[1739040079005,0.00010123,96543.0,96542.0,0.217174]
[1739040079302,0.001,96544.0,96542.0,0.217174]
[1739040079811,0.00115538,96550.0,96542.0,0.217174]
[1739040080107,0.00115538,96550.0,96542.0,0.213174]
[1739040080301,0.00115538,96550.0,96543.0,0.2071703]
[1739040080609,0.001,96544.0,96543.0,0.2071703]
[1739040081307,0.00015538,96550.0,96543.0,0.2071703]
[1739040081610,0.20831348,96550.0,96543.0,0.2071703]
[1739040082305,0.00115538,96550.0,96543.0,0.2071703]
[1739040082602,0.00115538,96550.0,96549.0,0.3608]
[1739040083109,0.00028436,96550.0,96549.0,0.3608]
[1739040083303,0.00015538,96550.0,96549.0,0.3608]
[1739040083503,0.00024784,96550.0,96549.0,0.3608]
[1739040083704,0.00025198,96550.0,96549.0,0.3608]
[1739040083904,0.00015538,96550.0,96549.0,0.3628]
[1739040084799,0.00015538,96550.0,96549.0,0.38086539]
[1739040085206,0.00015538,96550.0,96549.0,0.38186539]
[1739040086607,0.00024163,96550.0,96549.0,0.38186539]
[1739040086914,0.00015538,96550.0,96549.0,0.38186539]
[1739040087411,0.18637501,96550.0,96549.0,0.38186539]
[1739040087805,0.18644891,96550.0,96549.0,0.38186539]
[1739040088006,0.18647044,96550.0,96549.0,0.38186539]
[1739040088201,0.18637501,96550.0,96549.0,0.38186539]
[1739040090510,0.00015538,96550.0,96549.0,0.38186539]
[1739040091505,0.00024218,96550.0,96549.0,0.38186539]
[1739040091706,0.00015538,96550.0,96549.0,0.38186539]
[1739040092313,0.00026458,96550.0,96549.0,0.38186539]
[1739040092511,0.00015538,96550.0,96549.0,0.38186539]
[1739040096010,4e-05,96560.0,96555.0,0.2071446]
[1739040096209,4e-05,96560.0,96559.0,0.3608]
[1739040098219,0.00104,96560.0,96559.0,0.3608]
[1739040098822,0.00204,96560.0,96559.0,0.3608]
[1739040099013,0.00404,96560.0,96559.0,0.3608]
[1739040099412,0.00504,96560.0,96559.0,0.3608]
[1739040099716,0.0051179,96560.0,96559.0,0.3608]
[1739040099920,0.00504,96560.0,96559.0,0.3608]
[1739040102921,0.00504,96560.0,96559.0,0.28955136]
[1739040103622,0.00504,96560.0,96559.0,0.30685291]
[1739040104222,0.00516185,96560.0,96559.0,0.30685291]
[1739040104424,0.00504,96560.0,96559.0,0.30685291]
[1739040105119,0.00504,96560.0,96559.0,0.01730155]
[1739040105318,0.00504,96560.0,96558.0,0.5679376]
[1739040105720,0.14113101,96560.0,96558.0,0.5679376]
[1739040106126,0.34826681,96560.0,96558.0,0.5679376]
[1739040106421,0.2071375,96559.0,96558.0,0.5679376]
[1739040107126,0.2071375,96559.0,96558.0,0.37850024]
[1739040108219,0.2091375,96559.0,96558.0,0.37850024]
[1739040108818,0.2111375,96559.0,96558.0,0.37850024]
[1739040109018,0.39749198,96559.0,96558.0,0.37850024]
[1739040112027,0.2111375,96559.0,96558.0,0.37850024]
[1739040113030,0.21122345,96559.0,96558.0,0.37850024]
[1739040113328,0.2111375,96559.0,96558.0,0.37850024]
[1739040115528,0.27114945,96559.0,96558.0,0.37850024]
[1739040116333,0.27127174,96559.0,96558.0,0.37850024]
[1739040116632,0.27114945,96559.0,96558.0,0.37850024]
[1739040117732,0.06401195,96559.0,96558.0,0.37850024]
[1739040117927,0.2854,96593.0,96559.0,0.0517841]
[1739040118235,0.2854,96593.0,96585.0,0.3608]
[1739040118236,0.2070746,96589.0,96585.0,0.3608]
[1739040118534,0.2070788,96587.0,96585.0,0.3608]
[1739040119427,0.2070788,96587.0,96585.0,0.3618]
[1739040120019,0.2070788,96587.0,96586.0,0.07036]
[1739040120228,0.006,96589.0,96588.0,0.2070754]
[1739040121725,0.27891942,96590.0,96588.0,0.2070754]
[1739040122126,0.11543781,96598.0,96595.0,0.2070591]
[1739040122337,0.11543781,96598.0,96597.0,0.3608]
[1739040123937,0.004,96598.0,96597.0,0.3608]
[1739040124529,0.2070732,96589.0,96587.0,0.00015529]
[1739040125340,0.3608,96588.0,96587.0,0.00015529]
[1739040126043,0.5678732,96589.0,96587.0,0.00015529]
[1739040126339,9.614e-05,96588.0,96587.0,0.00015529]
[1739040126531,0.56839321,96589.0,96587.0,0.00115529]
[1739040126729,0.5678732,96589.0,96587.0,0.00115529]
[1739040127338,0.5678732,96589.0,96587.0,0.00015529]
[1739040128342,0.004,96588.0,96587.0,0.00015529]
[1739040128543,0.034,96588.0,96587.0,9e-08]
[1739040128736,0.33,96588.0,96587.0,9e-08]
[1739040129332,0.2071075,96573.0,96568.0,0.00155321]
[1739040129645,0.6382675,96573.0,96568.0,0.00155321]
[1739040130633,0.6382675,96573.0,96563.0,0.00015529]
[1739040130831,0.63835106,96573.0,96563.0,0.00015529]
[1739040131031,0.6442675,96573.0,96572.0,0.00108001]
[1739040131645,0.6492675,96573.0,96572.0,0.00208001]
[1739040131838,0.64938847,96573.0,96572.0,0.00208001]
[1739040132030,0.64936765,96573.0,96572.0,0.00208001]
[1739040132231,0.6492675,96573.0,96572.0,0.00208001]
[1739040132637,0.6522675,96573.0,96572.0,0.00208001]
[1739040135237,0.6522675,96573.0,96572.0,0.00108001]
[1739040135654,0.6472675,96573.0,96572.0,0.00108001]
[1739040135943,0.65235723,96573.0,96572.0,0.00208001]
[1739040136146,0.6432675,96573.0,96572.0,0.00108001]
[1739040136347,0.65137276,96573.0,96572.0,0.00208001]
[1739040136555,0.65139648,96573.0,96572.0,0.00208001]
[1739040136743,0.6512675,96573.0,96572.0,0.00208001]
[1739040137243,0.6432675,96573.0,96572.0,0.00108001]
[1739040137550,0.6522675,96573.0,96572.0,0.00208001]
[1739040137742,0.6472675,96573.0,96572.0,0.00108001]
[1739040137937,0.6522675,96573.0,96572.0,0.00108001]
[1739040138341,0.6472675,96573.0,96572.0,0.00108001]
[1739040138541,0.6522675,96573.0,96572.0,0.00108001]
[1739040139344,0.6492675,96573.0,96572.0,0.00108001]
[1739040140750,0.6592675,96573.0,96572.0,0.00108001]
[1739040142947,0.65934579,96573.0,96572.0,0.00108001]
[1739040143149,0.65935847,96573.0,96572.0,0.00108001]
[1739040143347,0.65937905,96573.0,96572.0,0.00108001]
[1739040143548,0.6592675,96573.0,96572.0,0.00108001]
[1739040143750,0.65936431,96573.0,96572.0,0.00108001]
[1739040143951,0.6592675,96573.0,96572.0,0.00108001]
[1739040147554,0.5889075,96573.0,96572.0,0.00108001]
[1739040147755,0.6592675,96573.0,96572.0,0.00108001]
[1739040148562,0.2984675,96573.0,96572.0,0.00108001]
[1739040149558,0.2281075,96573.0,96572.0,0.00108001]
[1739040149757,0.2984675,96573.0,96572.0,0.00108001]
[1739040152649,0.2984675,96573.0,96572.0,1e-08]
[1739040152953,0.33138918,96573.0,96572.0,1e-08]
[1739040153152,0.3312675,96573.0,96572.0,1e-08]
[1739040155072,0.34763012,96573.0,96572.0,1e-08]
[1739040157663,0.34773767,96573.0,96572.0,1e-08]
[1739040157854,0.34773851,96573.0,96572.0,1e-08]
[1739040158166,0.34763012,96573.0,96572.0,1e-08]
[1739040158364,0.70843012,96573.0,96572.0,1e-08]
[1739040162971,0.92863012,96573.0,96572.0,1e-08]
[1739040166865,1.28943012,96573.0,96572.0,1e-08]
[1739040167967,0.92863012,96573.0,96572.0,1e-08]
[1739040169274,1.28943012,96573.0,96572.0,1e-08]
[1739040171074,1.25663012,96573.0,96572.0,1e-08]
[1739040171778,0.2071268,96564.0,96563.0,0.00015529]
[1739040171978,0.5679268,96564.0,96563.0,0.00015529]
[1739040172184,0.5779268,96564.0,96563.0,0.00015529]
[1739040172874,0.57803021,96564.0,96563.0,0.00015529]
[1739040173083,0.57805578,96564.0,96563.0,0.00015529]
[1739040173264,0.57805578,96564.0,96563.0,9e-08]
[1739040173265,0.7981268,96564.0,96563.0,9e-08]
[1739040173971,0.8001268,96564.0,96563.0,9e-08]
[1739040174873,0.8011268,96564.0,96563.0,9e-08]
[1739040175477,0.8031268,96564.0,96563.0,9e-08]
[1739040175973,0.80325578,96564.0,96563.0,9e-08]
[1739040176180,0.8031268,96564.0,96563.0,9e-08]
[1739040180276,0.80323599,96564.0,96563.0,9e-08]
[1739040180476,0.8031268,96564.0,96563.0,9e-08]
[1739040183373,0.4423268,96564.0,96563.0,9e-08]
[1739040183769,0.44240023,96564.0,96563.0,9e-08]
[1739040183970,0.4423268,96564.0,96563.0,9e-08]
[1739040186072,0.44243822,96564.0,96563.0,9e-08]
[1739040186285,0.4423268,96564.0,96563.0,9e-08]
[1739040186477,0.44243503,96564.0,96563.0,9e-08]
[1739040186782,0.4423268,96564.0,96563.0,9e-08]
[1739040188887,0.2071569,96550.0,96547.0,0.02039876]
[1739040189085,0.2774769,96550.0,96547.0,0.02039876]
[1739040190085,0.2774769,96550.0,96549.0,0.0372]
[1739040190280,0.2774769,96550.0,96549.0,0.0402]
[1739040193687,0.27758188,96550.0,96549.0,0.0402]
[1739040193900,0.27758738,96550.0,96549.0,0.0402]
[1739040194082,0.27756276,96550.0,96549.0,0.0402]
[1739040194288,0.27758071,96550.0,96549.0,0.0402]
[1739040194487,0.2774769,96550.0,96549.0,0.0402]
[1739040200305,0.2774769,96550.0,96549.0,0.007]
[1739040200706,0.3174769,96550.0,96549.0,0.007]
[1739040201800,0.3174769,96550.0,96549.0,0.004]
[1739040201996,0.3184769,96550.0,96549.0,0.004]
[1739040202312,0.2071676,96545.0,96544.0,0.033]
[1739040202607,0.2171676,96545.0,96544.0,0.033]
[1739040203606,0.21726047,96545.0,96544.0,0.036]
[1739040203810,0.2171676,96545.0,96544.0,0.036]
[1739040204510,0.5779676,96545.0,96544.0,0.036]
[1739040205511,0.5679676,96545.0,96544.0,0.036]
[1739040206311,0.5879676,96545.0,96544.0,0.036]
[1739040206905,0.58804752,96545.0,96544.0,0.036]
[1739040207212,0.5879676,96545.0,96544.0,0.036]
[1739040207705,0.58809054,96545.0,96544.0,0.036]
[1739040207912,0.5879676,96545.0,96544.0,0.036]
[1739040210415,0.2271676,96545.0,96544.0,0.036]
[1739040210604,0.5879676,96545.0,96544.0,0.036]
[1739040211211,0.58809281,96545.0,96544.0,0.003]
[1739040211406,0.58809453,96545.0,96544.0,0.003]
[1739040211605,0.58808441,96545.0,96544.0,0.003]
[1739040211909,0.5879676,96545.0,96544.0,0.003]
[1739040214120,0.6582476,96545.0,96544.0,0.003]
[1739040215518,0.65833664,96545.0,96544.0,0.003]
[1739040215707,0.65834389,96545.0,96544.0,0.003]
[1739040215901,0.65833812,96545.0,96544.0,0.003]
[1739040216101,0.65837212,96545.0,96544.0,0.001]
[1739040216318,0.66134193,96545.0,96544.0,0.001]
[1739040216615,0.66134193,96545.0,96540.0,0.00015529]
[1739040216616,0.2071762,96541.0,96540.0,0.00015529]
[1739040217712,0.2081762,96541.0,96540.0,0.00015529]
[1739040217909,0.2091762,96541.0,96540.0,0.00015529]
[1739040219815,0.20929184,96541.0,96540.0,0.00015529]
[1739040220016,0.2092735,96541.0,96540.0,0.00015529]
[1739040220215,0.2091762,96541.0,96540.0,0.00015529]
[1739040223910,0.2794562,96541.0,96540.0,0.00015529]
[1739040224110,0.27957715,96541.0,96540.0,0.00015529]
[1739040224413,0.2794562,96541.0,96540.0,0.00015529]
[1739040225118,0.3094562,96541.0,96540.0,0.00015529]
[1739040226119,0.2391762,96541.0,96540.0,0.00015529]
[1739040226527,0.3094562,96541.0,96540.0,0.00015529]
[1739040227215,0.2391762,96541.0,96540.0,0.00015529]
[1739040227420,0.3094562,96541.0,96540.0,0.00015529]
[1739040227814,0.30955212,96541.0,96540.0,0.00015529]
[1739040228018,0.30953743,96541.0,96540.0,0.00015529]
[1739040228322,0.3094562,96541.0,96540.0,0.00015529]
[1739040228828,0.30958019,96541.0,96540.0,0.00015529]
[1739040229127,0.3094562,96541.0,96540.0,0.00015529]
[1739040233529,0.3095359,96541.0,96540.0,0.00015529]
[1739040233716,0.3094562,96541.0,96540.0,0.00015529]
[1739040241729,0.30955914,96541.0,96540.0,0.00015529]
[1739040241920,0.3094562,96541.0,96540.0,0.00015529]
[1739040245022,0.30957,96541.0,96540.0,0.00015529]